{"text_format":"1","workbook":"xlsx","n_sheets":2,"sheets":["Matriz de reporte ","Parametrización "],"not_rendered":{"charts":0,"images":1,"macros":1,"external_links":0,"defined_names":1,"comments":0,"pivot_tables":0},"unopened":[],"bounds":{"document_bytes":16777216,"sheet_cells":100000,"rows_first":2000,"rows_last":500,"rows_between":2000,"halvings":0,"cell_chars":16384,"cell_head_chars":4096},"cells_cut":0,"cells_raw":0,"read":"whole","date_system":"1900"}

{"sheet":"Matriz de reporte ","index":0,"n_rows":27,"n_cols":25,"rows_kept":27,"cut":false,"hidden":false,"merged":[[3,20,4,20],[3,3,4,3],[3,4,4,4],[3,9,4,9],[3,5,4,5],[0,3,1,24],[2,3,2,24],[3,1,4,1],[3,21,3,24],[3,12,3,13],[3,2,4,2],[3,6,4,6],[3,7,4,7],[3,8,4,8],[3,10,3,11],[3,14,3,15],[3,16,4,16],[3,17,4,17],[3,18,4,18],[3,19,4,19]]}
[null,null,null,"Ministerio de Igualdad y Equidad"]
[]
[null,null,null,"Primer Informe de resultados - Estrategia de Participación Ciudadana 2025\nEnero - Abril"]
[null,"No. De identificación en el Plan de Participación","Dependencia Responsable de la actividad","Descripción de la Actividad de Participación Ciudadana","Objetivo de la Actividad de Participación Ciudadana","Fase de la gestión pública de la actividad de Participación Ciudadana ","Tipo de actividad","Población invitada","Territorio impactado","Fecha Final de Ejecución","Divulgación de la Información para la actividad de Participación Ciudadana",null,"Convocatoria de la Actividad ",null,"Realización de la actividad",null,"Numero de participantes","Análisis Encuesta de Evaluación de ejercicios de Participación Ciudadana","Objetivo de Desarrollo Sostenible Asociado","Valor de los Recursos asociados","Resultados obtenidos en la actividad de Participación Ciudadana","AVANCE POR ACTIVIDAD "]
[null,null,null,null,null,null,null,null,null,null,"Fecha de divulgación\n(dd/mm/aaaa)","Canales utilizados para la divulgación de la información de la actividad de Participación Ciudadana","Fecha en que se realizó la convocatoria (dd/mm/aaaa)","Canales utilizados para la convocatoria de la actividad de participación Ciudadana ","Fecha de realización (dd/mm/aaaa) ","Canales utilizados para la realización de la actividad de participación Ciudadana",null,null,null,null,null,"Actividades programadas","Actividades Realizadas","% Avance","Estado"]
[null,1,"Sistema Nacional de Registro, Atención, Seguimiento y Monitoreo a las Violencias Basadas en  Género- Salvia","Crear la red de organizaciones sociales acompañantes del Sistema Salvia","Construir de manera participativa los lineamientos para la creación de la red de organizaciones acompañantes de VBG en el Sistema Nacional de Registro, Atención, Seguimiento y Monitoreo a la Violencias Basadas en Género- Salvia.","Diagnóstico y Formulación ",null,null,null,"2025-11-10",null,null,null,null,null,null,null,null,"5. Igualdad de género",null,null,1,null,{"$f":"+W6/V6","v":0},"EN PROCESO - SIN VENCIMIENTO"]
[null,2,"Dirección para la Garantía de los derechos de la población LGBTIQ+ ","Realizar encuentros con actores clave para el diálogo y la socialización del CONPES de política pública LGBTIQ+","Generar un diálogo con las personas participantes para dar a conocer el documento trabajado junto con el DNP, respecto al CONPES de política pública LGBTIQ+ a actores claves para su implementación, tales como la ciudadanía, los entes territoriales y entidades corresponsables y cabezas de sector. ","Ejecución participativa",null,null,null,"2025-04-03",null,null,null,null,null,null,null,null,"5. Igualdad de género",null,null,1,0,{"$f":"+W7/V7","v":0},"NO CUMPLIDO"]
[null,3,"Dirección para la Igualdad y la Equidad de Comunidades Negras, Afrodescendientes, Raizales y Palenqueras.\n Dirección para la Igualdad y la Equidad de Pueblos Indígenas.\nDirección para la Igualdad y la Equidad  del Pueblo Rrom\n","Realizar un espacio de participación intercultural de los pueblos  Indígenas, Rrom y las comunidades Negras, Afrodescendientes, Raizales y Palenqueras como insumo para la formulación de la Política Pública para la erradicación del racismo y la discriminación racial que promueva el bienestar de los pueblos Étnicos.","Realizar un espacio de diálogo con expertos y representantes de los pueblos y comunidades étnicas que orienten el proceso de formulación de la política pública contra la discriminación racial","Diagnóstico participativo",null,null,null,"2025-10-31",null,null,null,null,null,null,null,null,"10. Reducción de las desigualdades",null,null,1,null,{"$f":"+W8/V8","v":0},"EN PROCESO - SIN VENCIMIENTO"]
[null,4,"Dirección para la Igualdad y la Equidad del Campesinado-","Reglamentar la composición y garantizar funcionamiento de la Comisión Mixta Nacional para Asuntos Campesinos","Servir de instancia de interlocución y concertación entre el Gobierno Nacional y el campesinado para la articulación de las políticas públicas relacionadas con la población campesina con el fin de promover la materialización del derecho a la igualdad de esta población en el marco de su reconocimiento como sujeto de derechos y especial protección constitucional.","Ejecución - Evaluación",null,null,null,"2025-12-15",null,null,null,null,null,null,null,null,"10. Reducción de las desigualdades\n",null,null,1,null,0,"EN PROCESO - SIN VENCIMIENTO"]
[null,5,"Dirección para la Igualdad y la Equidad del Campesinado-","Formular la política pública para la materialización del derecho a la igualdad del campesinado","Espacios de participación en la formulación de la política pública para la materialización del derecho a la igualdad del campesinado","Ejecución - Evaluación",null,null,null,"2025-12-15",null,null,null,null,null,null,null,null,"10. Reducción de las desigualdades",null,null,1,null,0,"EN PROCESO - SIN VENCIMIENTO"]
[null,6,"Viceministerio de la Juventud","Cumplimiento de la Ley Estatutaria 1622 de 2013 y la Ley 1888 de 2018 referentes al estatuto de ciudadanía juvenil, así como de los mecanismos para que los jóvenes intervengan activamente en espacios de participación juvenil. ","Desarrollar la Asamblea Nacional de Juventud ","Ejecución participativa",null,null,null,"2025-07-27",null,null,null,null,null,null,null,null,"16. Paz, justicias e instituciones solidas",null,null,1,null,0,"EN PROCESO - SIN VENCIMIENTO"]
[null,7,"Viceministerio de la Juventud","Realizar dos  Foros Regionales con  los territorios en atención, que permita presentar un  balance  completo del proceso de implementación del Programa Nacional Jóvenes en Paz (DOFA)  ","Presentar a la juventud, sus familias, institucionalidad y a la ciudadanía en general, el estado de avance y principales resultados impactos en la implementación del Programa Nacional   Jóvenes en Paz en los territorios  atendidos","Seguimiento y evaluación participativa",null,null,null,"2025-11-27",null,null,null,null,null,null,null,null,"16. Paz, justicias e instituciones solidas",null,null,2,null,0,"EN PROCESO - SIN VENCIMIENTO"]
[null,8,"Viceministerio de las Mujeres","Realizar sesiones de la Mesa de Género del Acuerdo Nacional Estatal ","Hacer seguimiento y retroalimentar las acciones en materia de equidad de género establecidas en el Acuerdo Nacional estatal entre el gobierno nacional y las organizaciones sindicales del sector público","Seguimiento y evaluación participativa",null,null,null,"2025-12-22",null,null,null,null,null,null,null,null,"5. Igualdad de género",null,null,1,null,0,"EN PROCESO - SIN VENCIMIENTO"]
[null,9,"Oficina de Relacionamiento con la Ciudadanía","Formular de manera colaborativa y Publicar la estrategia de Participación Ciudadana del Ministerio de Igualdad y Equidad 2025, promoviendo espacios inclusivos y accesibles de diálogo y colaboración entre la entidad y la  ciudadanía en general","Fortalecer la relación estado ciudadano, permitiendo que la ciudadanía se involucre de manera activa en las etapas de la gestión del Ministerio a través de actividades.","Formulación participativa","Consulta","Ciudadanía en general\n","Todas las regiones donde los programas están siendo implementados","2025-01-31","2024-12-26"," Página web","2024-12-26"," Página web","2025-01-15","Virtual","N/A","N/A","16. Paz, justicias e instituciones solidas","N/A","No se presentaron comentarios, solicitudes, sugerencias de la ciudadanía en general  al plan de participación ciudadana.",1,1,1,"CULMINADO"]
[null,10,"Oficina Asesora de Planeación ","Formular de manera colaborativa con las dependencias y Publicar el borrador del Plan de Acción Institucional del Ministerio de Igualdad y Equidad  2025 para observaciones de la ciudadanía","Publicar en la página web del Ministerio de Igualdad y Equidad  el Plan de Acción Institucional para comentarios de la  ciudadanía","Formulación participativa","Consulta","Ciudadanía en general\n","N/A","2025-01-31","2025-01-31"," Página web","2025-01-17"," Página web","2025-01-17"," Página web","N/A","N/A","10. Reducción de las desigualdades","N/A","No se recibieron comentarios de las ciudadanía de ajuste al plan de acción.",1,1,1,"CULMINADO"]
[null,11,"Oficina Asesora de Planeación ","Formular de manera colaborativa con las dependencias y Publicar el borrador del Programa de Transparencia  y Ética Pública del Ministerio de Igualdad y Equidad  2025 para observaciones de la ciudadanía","Publicar en la página web del Ministerio de Igualdad y Equidad  el Programa de Transparencia  y Ética Pública para comentarios de la  ciudadanía","Formulación participativa","Consulta","Ciudadanía en general\n","N/A","2025-01-31","2025-01-31"," Página web","2024-12-26"," Página web","2024-12-26"," Página web","N/A","N/A","16. Paz, justicias e instituciones solidas","N/A","No se recibieron comentarios de las ciudadanía de ajuste al Programa de Transparencia.",1,1,1,"CULMINADO"]
[null,12,"Oficina Asesora de Planeación ","Formular de manera colaborativa con las dependencias y Publicar el borrador del Mapa de Riesgos del Ministerio de Igualdad y Equidad  2025 para observaciones de la ciudadanía","Publicar en la página web del Ministerio de Igualdad y Equidad el Mapa de Riesgos  para comentarios de la  ciudadanía","Formulación participativa","Consulta","Ciudadanía en general\n","N/A","2025-01-31","2025-01-31"," Página web","2025-01-20"," Página web","2025-01-20"," Página web","N/A","N/A","16. Paz, justicias e instituciones solidas","N/A","No se recibieron comentarios de las ciudadanía de ajuste al Mapa de Riesgos",1,1,1,"CULMINADO"]
[null,13,"Oficina Asesora de Planeación - Oficina Asesora de Comunicaciones- Oficina de Saberes y Conocimientos estratégicos - Oficina de Relacionamiento con la Ciudadanía","Realizar la audiencia pública de Rendición de Cuentas del Ministerio de Igualdad y Equidad","Presentar a la ciudadanía en general y a los Sujetos de Especial Protección Constitucional los avances en la gestión pública del Ministerio de Igualdad y Equidad ","Seguimiento y evaluación participativa (Rendición de cuentas y control social)","Audiencias públicas presenciales y Mixtas","Ciudadanía en general\n","Todas las regiones donde los programas están siendo implementados","2025-06-30","2025-02-19"," Página web","2025-05-30"," Redes sociales","2025-06-06","Presencial y Virtual",215,"Los resultados de la consulta pública reflejan un marcado interés de la ciudadanía por fortalecer la transparencia y la participación en la gestión del Ministerio de Igualdad y Equidad. Desde una perspectiva geográfica, se observa una concentración significativa de respuestas en Bogotá D.C. (20%) y el Valle del Cauca (17%), lo que evidencia una participación desigual en el territorio nacional, con 13 departamentos sin representación. Esta situación subraya la urgencia de ampliar la difusión de estos espacios en zonas con baja presencia institucional y de mejorar la accesibilidad en regiones apartadas, especialmente en áreas rurales, donde la participación fue apenas del 22%.\nAsimismo, las prioridades señaladas por la ciudadanía revelan preocupaciones esenciales relacionadas con la protección de poblaciones vulnerables, la equidad de género y el acceso a recursos básicos. Temas como la situación de los jóvenes en condiciones de vulnerabilidad (13%), la autonomía económica de las mujeres (9%) y el acceso a servicios esenciales como agua potable y saneamiento (8%) deben constituir ejes estratégicos en la agenda del Ministerio.\nEstos hallazgos ofrecen una hoja de ruta valiosa para orientar acciones que respondan de manera efectiva a las necesidades y expectativas de la población.","16. Paz, justicias e instituciones solidas","66,821,197","La experiencia ciudadana en el marco de las audiencias públicas fue altamente positiva en todos los aspectos evaluados. La claridad, relevancia de los temas tratados y adecuación del canal de comunicación se destacaron como elementos sobresalientes. No obstante, se identificaron oportunidades de mejora relacionadas con la garantía de participación plena de todos los asistentes y el fortalecimiento de la logística del evento.\nEste balance positivo ha permitido recoger aprendizajes institucionales valiosos, entre ellos:\n•\tLa eficacia de las estrategias de convocatoria directa y digital.\n•\tLa importancia de utilizar un lenguaje claro y accesible para presentar la información.\n•\tLa necesidad de promover espacios deliberativos que superen el enfoque exclusivamente informativo.\nEstos elementos reafirman el compromiso del Ministerio de Igualdad y Equidad con la transparencia y el diálogo social.\nEn coherencia con el enfoque territorial y diferencial que orienta la misión del Ministerio, se reconocen acciones clave para mejorar las futuras audiencias públicas:\n•\tDesarrollarlas directamente desde los territorios.\n•\tImplementar una estrategia itinerante o descentralizada.\n•\tFortalecer los mecanismos locales de participación.\n•\tOptimizar la logística y los tiempos de ejecución.\n•\tAmpliar el uso de canales de comunicación propios de cada contexto territorial.\nEstas acciones contribuirán a consolidar una rendición de cuentas más inclusiva, participativa y alineada con el propósito misional de cerrar brechas de desigualdad desde los territorios.",1,1,1,"CULMINADO"]
[null,14,"Dirección de Personas en Situación de Calle ","Realizar  espacios de formación para el desarrollo y fortalecimiento de las capacidades en participación ciudadana de las personas en situación de calle.","Dialogar con la población habitante de calle sobre procesos de empoderamiento y liderazgo para promover su inclusión social como sujetos de derechos. Estos procesos les permiten desarrollar habilidades y capacidades que fortalecen su autoestima y autonomía, facilitando su resocialización.","ejecución participativa",null,null,null,"2025-12-15",null,null,null,null,null,null,null,null,"10. Reducción de las desigualdades",null,null,1,null,0,"EN PROCESO - SIN VENCIMIENTO"]
[null,15,"Dirección para la Población Migrante","Generar espacios de dialogo para la transformación cultural y la erradicación de la discriminación","\nFormular acciones encaminadas a transformar y erradicar la cultura de la discriminación a través de espacios de diálogo con población migrante regular, irregular, refugiado, en tránsito y retornado","Formulación participativa",null,null,null,"2025-11-30",null,null,null,null,null,null,null,null,"17. Alianzas para lograr objetivos",null,null,1,null,0,"EN PROCESO - SIN VENCIMIENTO"]
[null,16,"Dirección Para el Acceso Igualitario al Agua en Territorio Marginados y Excluido.","Realizar formación pedagógica y apropiación por parte de las comunidades para la gobernanza del agua y las buenas prácticas de tratamiento y almacenamiento de agua  apta para consumo humano.","Conformar y capacitar un equipo de trabajo que lidere el proceso de implementación de las soluciones de agua no convencionales.","Ejecución participativa",null,null,null,"2025-12-15",null,null,null,null,null,null,null,null,"6. Agua limpia y saneamiento",null,null,1,null,0,"EN PROCESO - SIN VENCIMIENTO"]
[null,17,"Dirección para Personas Mayores","Fomentar la participación activa de las personas mayores en espacios de diálogo y toma de decisiones, promoviendo su inclusión, reconocimiento y contribución al desarrollo de políticas y proyectos que respondan a sus necesidades y potencien su rol como agentes clave en la sociedad.","Implementar espacios participativos para personas mayores, como mesas de diálogo, talleres comunitarios, foros participativos y Consejos, que les permitan expresar sus necesidades, compartir sus conocimientos y contribuir en la toma de decisiones sobre políticas y proyectos que les afectan directamente. Esta acción promoverá su inclusión activa en la vida comunitaria y fortalecerá su rol como agentes de cambio social.","Diagnóstico participativo",null,null,null,"2025-12-15",null,null,null,null,null,null,null,null,"10. Reducción de las desigualdades",null,null,3,null,0,"EN PROCESO - SIN VENCIMIENTO"]
[null,18,"Dirección de Cuidado","Realizar sesión del Consejo Asesor de Cuidado establecido en el decreto \"Por el cual se reglamenta el modelo de gobernanza del Sistema Nacional de Cuidado y se dictan otras disposiciones\"","Dialogar  sobre los avances del Sistema Nacional de Cuidado y generar  recomendaciones a la Comisión Intersectorial  en torno a los planes, programas y proyectos formulados en el marco del Sistema Nacional de Cuidado.","Ejecución y Seguimiento participativo",null,null,null,"2025-12-15",null,null,null,null,null,null,null,null,"5. Igualdad de género",null,null,1,null,0,"EN PROCESO - SIN VENCIMIENTO"]
[null,19,"Dirección para la Superación de la Pobreza","Realizar talleres participativos con organizaciones de la sociedad civil para recopilar insumos que contribuyan a la construcción del documento CONPES de la política para la garantía progresiva del Derecho Humano a la Alimentación y la soberanía alimentaria en Colombia.","Promover un diálogo amplio y participativo con la ciudadanía para recoger aportes que nutran la construcción colectiva del documento preliminar del CONPES de la política para la garantía progresiva del Derecho Humano a la Alimentación y la soberanía alimentaria en Colombia.","Formulación participativa",null,null,null,"2025-09-01",null,null,null,null,null,null,null,null,"2. Hambre cero",null,null,1,null,0,"EN PROCESO - SIN VENCIMIENTO"]
[null,20,"Dirección para la Superación de la Pobreza","Realizar las sesiones de la Comisión Intersectorial de Derecho Humano a la Alimentación  ","Realizar seguimiento a la Política Pública para la Garantía Progresiva del Derecho a la Alimentación.","Seguimiento y evaluación participativa",null,null,null,"2025-12-15",null,null,null,null,null,null,null,null,"2. Hambre cero",null,null,2,null,0,"EN PROCESO - SIN VENCIMIENTO"]
[null,21,"Dirección para la garantía de los derechos de las personas con discapacidad y Departamento Nacional de Planeación","Realizar el proceso de consulta ciudadana de la proyección del documento CONPES de Discapacidad en las plataformas establecidas por el DNP para recepción de aportes.  ","Dialogar con la ciudadanía en general, a  través de la plataforma virtual del DNP,  la proyección del documento CONPES de discapacidad, con el fin de recibir los comentarios por parte de la ciudadanía.","Formulación participativa ",null,null,null,"2025-10-31",null,null,null,null,null,null,null,null,"10. Reducción de las desigualdades",null,null,1,null,0,"EN PROCESO - SIN VENCIMIENTO"]
[null,null,null,null,null,null,null,null,null,null,null,null,null,null,null,null,null,null,null,null,"Ejecución del Plan de Participación Ciudadana",{"$f":"SUM(V6:V26)","v":25},{"$f":"SUM(W6:W26)","v":5},0.2]

{"sheet":"Parametrización ","index":1,"n_rows":20,"n_cols":17,"rows_kept":20,"cut":false,"hidden":true,"merged":[]}
[]
[null,null,null,"Fase de la Gestión Pública","Tipo de actividad","Población Invitada",null,null,"Canal utilizado para la divulgación de la información de la actividad de Participación Ciudadana",null,"Canales utilizados para la convocatoria a la  actividad de Participación Ciudadana",null,"Canales utilizados para la realización",null,null,"Objetivo de Desarrollo Sostenible asociado","Derecho Humano que se está Garantizando "]
[null,null,null,"Diagnostico participativo","Foros participativos presenciales","Mujeres en todas sus diversidades.\n",null,null,"Mensajes de texto",null,"Mensajes de texto",null,"Presencial",null,null,"1. Fin de la pobreza"]
[null,null,null,"Formulación participativa","Ferias de la gestión","Población LGBTIQ+.\n",null,null," Redes sociales",null," Redes sociales",null,"Virtual",null,null,"2. Hambre cero"]
[null,null,null,"Ejecución participativa ","Audiencias públicas presenciales","Pueblos afrodescendientes, negros, raizales, palanqueros, indígenas y Rrom.\n",null,null,"Radio, televisión y otros medios audiovisuales",null,"Radio, televisión y otros medios audiovisuales",null,null,null,null,"3. Salud y Bienestar"]
[null,null,null,"Seguimiento y evaluación participativa (Rendición de cuentas y control social)","Audiencias públicas virtuales","Campesinos y campesinas\n\n",null,null," Página web",null," Página web",null,null,null,null,"4. Educación de calidad."]
[null,null,null,null,"Observatorios ciudadanos","Miembros de hogares en situación de pobreza y pobreza extrema.\n",null,null,"Correo electrónico",null,"Correo electrónico",null,null,null,null,"5. Igualdad de género"]
[null,null,null,null,"Mesas de diálogo","Jóvenes.",null,null,"Carteleras, boletines, folletos u otros recursos físicos",null,"Carteleras, boletines, folletos u otros recursos físicos",null,null,null,null,"6. Agua limpia y saneamiento"]
[null,null,null,null,"Reuniones zonales o temáticas presenciales","Personas con discapacidad.\n",null,null,"Reuniones presenciales ",null,"Reuniones presenciales ",null,null,null,null,"7. Energia asequible y no contaminante"]
[null,null,null,null,"Asambleas comunitarias","Habitantes de calle.\n",null,null,"Reuniones  virtuales",null,"Reuniones  virtuales",null,null,null,null,"8. Trabajo decente y crecimiento económico"]
[null,null,null,null," Reuniones virtuales","Población en territorios excluidos.\n",null,null,"Otro. ¿Cuál?:",null,"Otro. ¿Cuál?:",null,null,null,null,"9. Industria, innovación e infraestructuras"]
[null,null,null,null," Redes sociales","Mujeres cabeza de familia\n",null,null,null,null,null,null,null,null,null,"10. Reducción de las desigualdades"]
[null,null,null,null,"Taller","Adultos Mayores\n",null,null,null,null,null,null,null,null,null,"11. Ciudades y comunidades sostenibles"]
[null,null,null,null," Otra. ¿Cuál?:","Familias.\n",null,null,null,null,null,null,null,null,null,"12.Producción y consumo responsable"]
[null,null,null,null,null,"Niñez.\n",null,null,null,null,null,null,null,null,null,"13.Acción por el clima."]
[null,null,null,null,null,"Población migrante regular, irregular, refugiado, en tránsito y retornado.",null,null,null,null,null,null,null,null,null,"14.Vida submarina"]
[null,null,null,null,null,"Ciudadanía en general\n",null,null,null,null,null,null,null,null,null,"15. Vida de ecosistemas sostenibles"]
[null,null,null,null,null,"Academia\n",null,null,null,null,null,null,null,null,null,"16. Paz, justicias e instituciones solidas"]
[null,null,null,null,null,"Veedurias Ciudadanas y grupos de control social",null,null,null,null,null,null,null,null,null,"17. Alianzas para lograr objetivos"]
[null,null,null,null,null,"Organizaciones de la sociedad civil"]